fUSD/lending_fUSD_20260115
["ID","MTS","AMOUNT","RATE_DAILY","PERIOD"]
[402023907,1768482633250,-802.0,0.00018521,2]
[402023908,1768482633259,-166.66,0.00018565,2]
[402023909,1768482633269,-150.0,0.0001857,2]
[402023910,1768482633278,-802.0,0.00018576,2]
[402023911,1768482633287,-900.0,0.0001863,2]
[402023912,1768482633297,-802.0,0.00018631,2]
[402023913,1768482633306,-3720.19671924,0.00018631,4]
[402023914,1768482633315,-150.0,0.00018658,2]
[402023915,1768482633326,-150.0,0.00018672,2]
[402023916,1768482633335,-802.0,0.00018685,2]
[402023917,1768482633344,-150.0,0.0001872,2]
[402023918,1768482633354,-802.0,0.0001874,2]
[402023919,1768482633363,-640.24385345,0.00018743,2]
[402023920,1768482633373,-450.38,0.00018762,2]
[402023921,1768482633383,-4506.0,0.00018777,2]
[402023922,1768482633393,-802.0,0.00018795,2]
[402023923,1768482633402,-802.0,0.0001885,2]
[402023924,1768482633412,-802.0,0.00018904,2]
[402023925,1768482633421,-4506.0,0.00018964,2]
[402023926,1768482633430,-500.0,0.00018999,2]
[402023927,1768482633440,-188.33432251,0.00018999,2]
[402023928,1768482633449,-500.0,0.00018999,2]
[402023929,1768482633459,-500.0,0.00018999,2]
[402023930,1768482633469,-500.0,0.00018999,2]
[402023931,1768482633478,-500.0,0.00018999,2]
[402023932,1768482633488,-185.64383353,0.00018999,2]
[402023933,1768482633497,-440.9103591,0.00018999,2]
[402023934,1768482633508,-288.05160882,0.00018999,2]
[402023935,1768482633518,-204.36630649,0.00019,2]
[402023936,1768482633527,-206.197685,0.00019,2]
[402023937,1768482633537,-32294.06403269,0.00019,2]
[402023938,1768482634091,-37108.20202009,0.00019,2]
[402023939,1768482634103,-44022.22124052,0.00019,2]
[402023940,1768482634112,-436.68,0.00019013,2]
[402023941,1768482634123,-1000.0,0.00019054,2]
[402023942,1768482634133,-200.18708233,0.00019082,2]
[402023943,1768482634142,-318.0,0.00019135,2]
[402023944,1768482634151,-166.66,0.0001914,2]
[402023945,1768482634161,-621.88276305,0.00019178,2]
[402023946,1768482634170,-231.8150209,0.0001919,2]
[402023947,1768482634180,-153.99,0.00019248,2]
[402023948,1768482634190,-620.47,0.00019264,2]
[402023949,1768482634200,-663.93287602,0.00019291,2]
[402023950,1768482634209,-150.0,0.0001951,2]
[402023951,1768482634219,-166.66,0.00019715,2]
[402023952,1768482634228,-155.0,0.00019799,2]
[402023953,1768482634243,-346.92554585,0.00019837,2]
[402023954,1768482634264,-688.49839244,0.00019839,2]
[402023955,1768482634283,-436.68,0.00019877,2]
[402023956,1768482634302,-302.94097839,0.000199,4]
[402023957,1768482634311,-15201.19591663,0.00019964,2]
[402023958,1768482634320,-3720.19671924,0.00020012,9]
[402023959,1768482634330,-150.0,0.00020021,2]
[402023960,1768482634342,-10779.6431498,0.00020107,2]
[402023961,1768482634351,-13651.4664202,0.00020129,2]
[402023962,1768482634359,-150.0,0.00020248,2]
[402023963,1768482634369,-153.99,0.00020261,2]
[402023964,1768482634660,-166.66,0.0002029,2]
[402023965,1768482634671,-1278.3,0.00020334,2]
[402023966,1768482634681,-713.97283296,0.00020387,2]
[402023967,1768482634691,-2652.27,0.00020617,2]
[402023968,1768482634700,-436.68,0.00020741,2]
[402023969,1768482634710,-150.0,0.00020745,2]
[402023970,1768482634720,-500.0,0.00020849,2]
[402023971,1768482634731,-740.38982778,0.00020935,2]
[402023972,1768482634740,-1262.0,0.00021028,2]
[402023973,1768482634749,-152.0,0.00021028,2]
[402023974,1768482634758,-152.0,0.00021028,2]
[402023975,1768482634769,-152.0,0.00021028,2]
[402023976,1768482634778,-152.0,0.00021028,2]
[402023977,1768482634787,-152.0,0.00021028,2]
[402023978,1768482634796,-152.0,0.00021028,2]
[402023979,1768482634807,-150.0,0.00021084,2]
[402023980,1768482634816,-1000.0,0.00021172,2]
[402023981,1768482634825,-194.79237702,0.00021206,2]
[402023982,1768482634835,-265.0,0.00021208,2]
[402023983,1768482634844,-213.0,0.00021208,2]
[402023984,1768482634853,-194.531,0.00021208,2]
[402023985,1768482634863,-250.0,0.00021208,2]
[402023986,1768482634872,-226.84,0.00021208,2]
[402023987,1768482634881,-157.526,0.00021208,2]
[402023988,1768482634890,-250.0,0.00021208,2]
[402023989,1768482634899,-191.042,0.00021208,2]
[402023990,1768482634908,-250.0,0.00021208,2]
[402023991,1768482634918,-212.092,0.00021208,2]
[402023992,1768482634927,-169.0,0.00021208,2]
[402023993,1768482634937,-229.853,0.00021208,2]
[402023994,1768482634946,-1406.0,0.00021208,2]
[402023995,1768482634955,-614.0,0.00021208,2]
[402023996,1768482634965,-2527.293,0.00021208,2]
[402023997,1768482634974,-412.0,0.00021208,2]
[402023998,1768482634983,-1267.0,0.00021208,2]
[402023999,1768482634994,-1201.0,0.00021208,2]
[402024000,1768482635003,-914.0,0.00021208,2]
[402024001,1768482635013,-2438.0,0.00021208,2]
[402024002,1768482635022,-616.57077156,0.00021208,2]
[402024003,1768482635034,-5941.42922844,0.00021208,2]
[402024004,1768482635044,-153.99,0.00021274,2]
[402024005,1768482635053,-3720.19671924,0.00021392,14]
[402024006,1768482635062,-620.47,0.00021404,2]
[402024007,1768482635072,-767.7842514,0.00021483,2]
[402024008,1768482635081,-41885.0,0.00021683,2]
[402024009,1768482635091,-158.72722158,0.0002187,2]
[402024010,1768482635100,-453.0,0.000219,2]
[402024011,1768482635109,-5000.0,0.00021918,2]
[402024012,1768482635118,-500.0,0.00021918,2]
[402024013,1768482635128,-500.31098427,0.00021973,2]
[402024014,1768482635137,-796.19226871,0.00022031,2]
[402024015,1768482635147,-10779.6431498,0.00022214,2]
[402024016,1768482635156,-13651.4664202,0.00022257,2]
[402024017,1768482635165,-153.99,0.00022288,2]
[402024018,1768482635175,-237.92569238,0.00022546,2]
[402024019,1768482635184,-825.65138265,0.00022579,2]
[402024020,1768482635195,-1278.3,0.00022586,2]
[402024021,1768482635204,-3720.19671924,0.00022772,19]
[402024022,1768482635214,-12460.0,0.00023,2]
[402024023,1768482635223,-1000.0,0.00023289,2]
[402024024,1768482635232,-153.99,0.00023301,2]
[402024025,1768482635242,-620.47,0.00023545,2]
[402024026,1768482635252,-5533.0,0.000237,3]
[402024027,1768482635261,-231.8150209,0.00023889,2]
[402024028,1768482635271,-3720.19671924,0.00024153,24]
[402024029,1768482635280,-1115.668,0.00024208,2]
[402024030,1768482635289,-412.0,0.00024208,2]
[402024031,1768482635298,-2438.0,0.00024208,2]
[402024032,1768482635307,-6558.0,0.00024208,2]
[402024033,1768482635316,-181.5,0.00024225,30]
[402024034,1768482635325,-153.99,0.00024314,2]
[402024035,1768482635335,-10779.6431498,0.00024321,2]
[402024036,1768482635344,-13651.4664202,0.00024386,2]
[402024037,1768482635353,-5533.0,0.000244,5]
[402024038,1768482635363,-1000.0,0.00024658,2]
[402024039,1768482635372,-78770.24579984,0.000248,2]
[402024040,1768482635410,-439.31811681,0.000248,2]
[402024216,1768482640236,-151.0,0.00016484,2]
[402024217,1768482640247,-159.09794986,0.00018959,2]
[402024218,1768482640344,-655.99581401,0.00018959,2]
[402024219,1768482640353,-312.55491604,0.00021208,2]
[402024235,1768482643382,-358.27007919,0.00021208,2]
[402024236,1768482643395,-383.4255004,0.00021208,2]
[402024241,1768482645943,-388.41240471,0.00021208,2]
[402024242,1768482646337,-3380.33709966,0.00021208,2]
[402024243,1768482646346,-566.0,0.00021208,2]
[402024244,1768482646356,-2314.41599643,0.00024208,2]
[402024245,1768482646375,-2222.05461712,0.00024208,2]
[402024246,1768482646389,-284.52938645,0.00024208,2]
[402024247,1768482646399,-566.0,0.00024208,2]
[402024248,1768482646408,-2509.47061354,0.000248,2]
[402024255,1768482914498,423.05051966,0.00030136,120]
[402024273,1768483415026,151.0,0.00030136,120]
[402024274,1768483468665,500.0,0.00030136,120]
[402024275,1768483477690,293.94668629,0.00030136,120]
[402024276,1768483484849,500.0,0.00030136,120]
[402024277,1768483498317,500.0,0.00030136,120]
[402024278,1768483512240,500.0,0.00030136,120]
[402024294,1768483832499,-3728.97322002,0.0001439,2]
[402024295,1768483832510,-296.37544024,0.00014445,2]
[402024296,1768483832520,-627.72934681,0.00016,2]
[402024297,1768483832531,-999.0,0.00016,2]
[402024298,1768483832543,-450.72894432,0.00016,2]
[402024299,1768483832555,-1372.97586918,0.00016,2]
[402024301,1768483838090,-167.7075191,0.00016,2]
[402024302,1768483838101,-713.71647197,0.000162,5]
[402024303,1768483838114,-732.92964098,0.000162,5]
[402024304,1768483838127,-459.74183051,0.000162,5]
[402024305,1768483838208,-3514.41772713,0.000162,5]
[402024306,1768483838217,-753.53,0.00016908,2]
[402024307,1768483838227,-6523.18708627,0.00016908,2]
[402024308,1768483838239,-1635.46291373,0.00016908,2]
[402024309,1768483838248,-500.0,0.00017579,2]
[402024310,1768483838259,-273.81622904,0.000176,2]
[402024311,1768483838268,-63.85584898,0.000176,2]
[402024312,1768483838320,-188.27045754,0.000176,2]
[402024313,1768483838331,-2500.0,0.000179,2]
[402024314,1768483838341,-396.95207714,0.000179,2]
[402024315,1768483838351,-1047.56281196,0.000179,2]
[402024316,1768483838360,-1848.02497188,0.000179,2]
[402024317,1768483838372,-2764.53483482,0.000179,2]
[402024319,1768483838382,-169.94692318,0.00017928,2]
[402024321,1768483838393,-941.76498584,0.00017928,2]
[402024323,1768483838403,-733.27001901,0.00017928,2]
[402024324,1768483838412,-2973.63151012,0.00017928,2]
[402024326,1768483838422,-182.91646389,0.00017928,2]
[402024327,1768483838432,-150.0,0.00017973,2]
[402024328,1768483838442,-150.0,0.00017973,2]
[402024329,1768483838451,-300.0,0.00017999,2]
[402024330,1768483838461,-300.0,0.00017999,2]
[402024331,1768483838471,-500.0,0.00017999,2]
[402024332,1768483838481,-201.63612617,0.00017999,2]
[402024333,1768483838491,-479.95068347,0.00017999,2]
[402024335,1768483838500,-308.63725137,0.00017999,2]
[402024337,1768483838510,-500.0,0.00017999,2]
[402024338,1768483838519,-531.83402576,0.00017999,2]
[402024339,1768483838529,-500.0,0.00017999,2]
[402024340,1768483838539,-500.0,0.00017999,2]
[402024341,1768483838549,-500.0,0.00017999,2]
[402024342,1768483838559,-500.0,0.00017999,2]
[402024343,1768483838568,-500.0,0.00017999,2]
[402024344,1768483838578,-500.0,0.00017999,2]
[402024345,1768483838588,-500.0,0.00017999,2]
[402024346,1768483838597,-140.33667416,0.00017999,2]
[402024347,1768483838610,-359.66332584,0.00017999,2]
[402024348,1768483838619,-500.0,0.00017999,2]
[402024349,1768483838628,-500.0,0.00017999,2]
[402024350,1768483838638,-500.0,0.00017999,2]
[402024351,1768483838647,-500.0,0.00017999,2]
[402024352,1768483838656,-500.0,0.00017999,2]
[402024353,1768483838666,-500.0,0.00017999,2]
[402024354,1768483838675,-500.0,0.00017999,2]
[402024355,1768483838685,-257.56943714,0.00017999,2]
[402024356,1768483838694,-118.76723702,0.00017999,2]
[402024357,1768483838706,-381.23276298,0.00017999,2]
[402024358,1768483838715,-500.0,0.00017999,2]
[402024359,1768483838725,-17.97723702,0.00017999,2]
[402024360,1768483838737,-482.02276298,0.00017999,2]
[402024361,1768483838747,-500.0,0.00017999,2]
[402024362,1768483838756,-298.43705885,0.00017999,2]
[402024364,1768483840305,-201.56294115,0.00017999,2]
[402024365,1768483840315,-700.43705885,0.00018,2]
[402024366,1768483840327,-4559312.02885773,0.00018,2]
[402024367,1768483840336,-250.0,0.00018028,2]
[402024368,1768483840345,-958.7,0.00018048,2]
[402024369,1768483840355,-958.7,0.00020303,2]
[402024370,1768483840364,-409.74,0.00020967,2]
[402024371,1768483840373,-299.99,0.00021875,7]
[402024372,1768483840383,-174.61919141,0.00021875,2]
[402024373,1768483840393,-574.12855637,0.00021875,2]
[402024374,1768483840402,-169.94692312,0.0002191,2]
[402024375,1768483840411,-1400.0,0.00022,2]
[402024376,1768483840421,-212.25748605,0.00022423,2]
[402024377,1768483840430,-633.69318379,0.00022423,2]
[402024378,1768483840439,-958.7,0.00022557,2]
[402024379,1768483840448,-733.270019,0.00022651,2]
[402024380,1768483840458,-1500.0,0.00023,3]
[402024381,1768483840467,-200.0,0.00023321,2]
[402024382,1768483840476,-150.0,0.00023746,2]
[402024383,1768483840485,-150.0,0.00023828,2]
[402024384,1768483840496,-156.14,0.00023928,2]
[402024385,1768483840505,-3075.56632083,0.00024304,2]
[402024386,1768483840515,-150.0,0.00024492,2]
[402024387,1768483840524,-150.0,0.00024542,2]
[402024388,1768483840533,-200.0,0.00024602,2]
[402024389,1768483840543,-150.0,0.00024742,2]
[402024390,1768483840552,-168.431,0.0002475,8]
[402024391,1768483840561,-1349.221,0.0002475,8]
[402024392,1768483840571,-1000.0,0.000248,2]
[402024393,1768483840581,-1550.15335,0.000248,2]
[402024394,1768483840590,-15580.9369519,0.000248,2]
[402024395,1768483840600,-958.7,0.00024812,2]
[402024396,1768483840609,-300.0,0.00024899,10]
[402024397,1768483840618,-215324.10151,0.000249,2]
[402024398,1768483840628,-753.53,0.00024908,30]
[402024399,1768483840638,-1550.15336,0.00025,2]
[402024400,1768483840647,-172.69,0.00025179,2]
[402024401,1768483840657,-1550.15335,0.000252,2]
[402024402,1768483840666,-1550.15336,0.000254,2]
[402024403,1768483840675,-1000.0,0.00025406,2]
[402024404,1768483840685,-150.0,0.00025435,2]
[402024405,1768483840694,-1550.15336,0.000256,2]
[402024406,1768483840703,-300.0,0.0002571,10]
[402024407,1768483840713,-69348.1922,0.00025711,2]
[402024408,1768483840722,-6705.0045,0.00025711,2]
[402024409,1768483840732,-236.7564,0.00025711,2]
[402024410,1768483840741,-1550.15335,0.000258,2]
[402024411,1768483840751,-290.31,0.0002582,2]
[402024412,1768483840760,-300.0,0.0002582,10]
[402024413,1768483840770,-7590.0,0.00025821,2]
[402024414,1768483840779,-455066.18555593,0.00025821,2]
[402024415,1768483840824,-1553.73338953,0.00025821,2]
[402024416,1768483840835,-586.80897448,0.00025821,2]
[402024417,1768483841220,-519.50179811,0.00025821,2]
[402024418,1768483841231,-458.31381375,0.00025821,2]
[402024423,1768483843988,-655.28295906,0.00025821,2]
[402024453,1768483844335,-1136.63109416,0.00025821,2]
[402024455,1768483844347,-1016.65390737,0.00025821,2]
[402024457,1768483844358,-292.03009505,0.00025821,2]
[402024461,1768483846050,-269.99999995,0.00021888,2]
[402024462,1768483846062,-288.85806298,0.00021888,2]
[402024463,1768483846073,-772.14193707,0.00021888,2]
[402024464,1768483846082,-1331.0,0.00024888,2]
[402024465,1768483846091,-143993.61478075,0.00025821,2]
[402024466,1768483846102,-262.9,0.00025821,2]
[402024467,1768483846123,-3531.57347963,0.00025821,2]
[402024468,1768483846134,-1779.84698853,0.00025821,2]
[402024469,1768483846225,-630.21210057,0.00025821,2]
[402024470,1768483846283,-1352.0,0.00025821,2]
[402024483,1768484135318,305.24873657,0.00030136,120]
[402024487,1768484359293,1154.0,0.00030137,120]
[402024489,1768484815112,-484.69947238,0.00016971,2]
[402024490,1768484859195,-715.30052762,0.00016971,2]
[402024491,1768484859223,-4023.90381,0.00016972,2]
[402024492,1768484859245,-294.12841422,0.00016972,2]
[402024493,1768484859268,-500.0,0.00016973,2]
[402024494,1768484859298,-500.0,0.00016973,2]
[402024495,1768484859318,-500.0,0.00016973,2]
[402024496,1768484859343,-500.0,0.00016973,2]
[402024497,1768484859363,-500.0,0.00016973,2]
[402024498,1768484859383,-500.0,0.00016973,2]
[402024499,1768484859402,-500.0,0.00016973,2]
[402024500,1768484859422,-1349.221,0.00017444,2]
[402024501,1768484859446,-168.431,0.00017444,2]
[402024502,1768484859467,-550.0,0.0001752,2]
[402024503,1768484859490,-1000.0,0.00017521,2]
[402024504,1768484859510,-1000.0,0.00017521,2]
[402024505,1768484859534,-1000.0,0.00017521,2]
[402024506,1768484859554,-1000.0,0.00017521,2]
[402024507,1768484859576,-1000.0,0.00017521,2]
[402024508,1768484859596,-1000.0,0.00017521,2]
[402024509,1768484859617,-1000.0,0.00017521,2]
[402024510,1768484859638,-69348.1922,0.000177,2]
[402024511,1768484859660,-6705.0045,0.000177,2]
[402024512,1768484859681,-236.7564,0.000177,2]
[402024513,1768484859703,-401.57951844,0.000177,2]
[402024514,1768484859724,-152.71693468,0.000177,2]
[402024515,1768484859748,-151.0,0.00017797,2]
[402024516,1768484859770,-574.6818898,0.00017799,2]
[402024517,1768484859792,-500.0,0.00017799,2]
[402024518,1768484859818,-500.0,0.00017799,2]
[402024519,1768484859840,-500.0,0.00017799,2]
[402024520,1768484859865,-500.0,0.00017799,2]
[402024521,1768484859890,-497.14609524,0.00017799,2]
[402024522,1768484859911,-500.0,0.00017799,2]
[402024523,1768484859932,-500.0,0.00017799,2]
[402024524,1768484859958,-1000000.0,0.000178,2]
[402024525,1768484859980,-376.77,0.000178,2]
[402024526,1768484860000,-500.0,0.00017973,2]
[402024527,1768484860022,-500.0,0.00017999,2]
[402024528,1768484860043,-508.8446746,0.00017999,2]
[402024529,1768484860064,-958.7,0.00018116,2]
[402024530,1768484860087,-1000.0,0.00018521,2]
[402024531,1768484860107,-250.20405931,0.00018583,2]
[402024532,1768484860133,-195.0,0.00018669,2]
[402024533,1768484860153,-600.0,0.00018669,2]
[402024534,1768484860180,-250.0,0.00018669,2]
[402024535,1768484860201,-500.0,0.00018828,2]
[402024536,1768484860222,-350.0,0.0001906,2]
[402024537,1768484867948,1000.0,0.000202,30]
[402024538,1768484873738,443.08,0.00011286,2]
[402024539,1768484873951,443.08,0.0001188,2]
[402024540,1768484874153,443.08,0.00012474,2]
[402024541,1768484884022,-300.24560225,0.00013068,2]
[402024542,1768484884735,4935.0,0.00013003,2]
[402024543,1768484935003,500.0,0.00030136,120]
[402024553,1768485032800,-142.83439775,0.00013068,2]
[402024554,1768485032809,-315.61307554,0.00013662,2]
[402024555,1768485032821,-127.46692446,0.00013662,2]
[402024556,1768485032830,-443.08,0.00014256,2]
[402024557,1768485032840,-4.05307554,0.0001485,2]
[402024558,1768485032854,-439.02692446,0.0001485,2]
[402024559,1768485032863,-443.08,0.00015444,2]
[402024560,1768485032873,-443.08,0.00016038,2]
[402024561,1768485032882,-443.08,0.00016632,2]
[402024562,1768485032891,-443.08,0.00017226,2]
[402024563,1768485032903,-256039.09307554,0.000176,2]
[402024564,1768485032914,-6908.99386098,0.000176,2]
[402024565,1768485032958,-336.22313328,0.000176,2]
[402024566,1768485032969,-4092.21307187,0.000176,2]
[402024567,1768485032995,-13639.03406531,0.000176,2]
[402024568,1768485033048,-689.16136204,0.000176,2]
[402024569,1768485038340,-415.15147597,0.00017599,2]
[402024570,1768485038354,-84.84852403,0.00017599,2]
[402024571,1768485038365,-500.0,0.00017599,2]
[402024572,1768485038375,-166.34956614,0.00017599,2]
[402024573,1768485038385,-2164.1336887,0.000176,2]
[402024574,1768485038396,-306.23050185,0.000176,2]
[402024575,1768485038507,-300.6,0.000176,2]
[402024576,1768485038519,-413.88513912,0.000176,2]
[402024577,1768485038532,-5463.04605607,0.000176,2]
[402024586,1768485040360,-2418.0,0.000176,2]
[402024587,1768485040418,-4133.84343981,0.000176,2]
[402024588,1768485040552,-33841.96497514,0.000176,2]
[402024589,1768485040612,-27336.69674415,0.000176,2]
[402024590,1768485040671,-571.83977236,0.000176,2]
[402024591,1768485040731,-641345.04111378,0.000176,2]
[402024592,1768485040742,-361.42156665,0.0001762,2]
[402024593,1768485040751,-238.0232665,0.0001772,2]
[402024594,1768485040761,-443.08,0.0001782,2]
[402024595,1768485040770,-443.08,0.00018414,2]
[402024596,1768485040780,-189.0,0.00018521,2]
[402024597,1768485040790,-443.08,0.00019008,2]
[402024598,1768485040801,-650.0,0.0001906,2]
[402024599,1768485040810,-200.0,0.00019242,2]
[402024600,1768485040819,-443.08,0.00019602,2]
[402024601,1768485040829,-150.0,0.0002,2]
[402024602,1768485040838,-443.08,0.00020196,2]
[402024604,1768485040847,-958.7,0.00020364,2]
[402024605,1768485040859,-443.08,0.0002079,2]
[402024606,1768485040868,-499.99,0.00020951,2]
[402024607,1768485040878,-299.99,0.00020951,7]
[402024608,1768485040888,-166.66,0.00021036,2]
[402024609,1768485040898,-574.12855637,0.00021044,2]
[402024611,1768485040907,-174.61919141,0.00021044,2]
[402024612,1768485040916,-443.08,0.00021384,2]
[402024613,1768485040926,-155.92,0.000214,2]
[402024614,1768485040936,-1000.0,0.00021443,2]
[402024615,1768485040946,-166.66,0.00021479,2]
[402024616,1768485040955,-595.37131296,0.00021592,2]
[402024617,1768485040965,-181.08010149,0.00021592,2]
[402024618,1768485040975,-500.0,0.00021699,2]
[402024619,1768485040984,-500.0,0.00021754,2]
[402024620,1768485040994,-500.0,0.00021809,2]
[402024621,1768485041004,-500.0,0.00021863,2]
[402024622,1768485041014,-500.0,0.00021918,2]
[402024623,1768485041024,-166.66,0.00021922,30]
[402024624,1768485041034,-443.08,0.00021978,2]
[402024625,1768485041044,-591.9656089,0.0002214,2]
[402024626,1768485041053,-187.78006525,0.0002214,2]
[402024627,1768485041062,-166.66,0.00022364,30]
[402024628,1768485041071,-443.08,0.00022572,2]
[402024629,1768485041081,-500.0,0.00022605,2]
[402024630,1768485041090,-958.7,0.00022613,2]
[402024631,1768485041364,-290.31,0.0002267,2]
[402024632,1768485041374,-3469.0,0.00022671,2]
[402024633,1768485041384,-1331.0,0.00022671,2]
[402024634,1768485041393,-1267.0,0.00022671,2]
[402024635,1768485041403,-440.402,0.00022671,2]
[402024636,1768485041412,-6558.0,0.00022671,2]
[402024637,1768485041422,-338.979,0.00022671,2]
[402024638,1768485041431,-4822.0,0.00022671,2]
[402024639,1768485041441,-216.47029662,0.00022688,2]
[402024640,1768485041450,-1500.0,0.00022716,2]
[402024641,1768485041459,-9670.0,0.00022774,2]
[402024642,1768485041469,-166.66,0.00022807,30]
[402024643,1768485041478,-290.31,0.00022944,2]
[402024644,1768485041488,-5000.0,0.00023213,2]
[402024645,1768485041501,-290.31,0.00023218,2]
[402024646,1768485041510,-166.66,0.0002325,30]
[402024647,1768485041519,-290.31,0.00023492,2]
[402024648,1768485041528,-168.0,0.00023591,2]
[402024649,1768485041538,-564.0,0.00023611,2]
[402024650,1768485041547,-564.0,0.00023614,2]
[402024651,1768485041556,-152.71693468,0.00023729,2]
[402024652,1768485041566,-564.0,0.00023747,2]
[402024653,1768485041576,-1547.2,0.00023756,2]
[402024654,1768485041585,-290.33,0.00023766,2]
[402024655,1768485041594,-168.0,0.00023817,2]
[402024656,1768485041604,-1000.0,0.00023825,2]
[402024657,1768485041613,-168.0,0.00023855,2]
[402024658,1768485041623,-168.0,0.00023943,2]
[402024659,1768485041632,-564.0,0.00024044,2]
[402024660,1768485041641,-168.0,0.00024225,2]
[402024661,1768485041651,-168.0,0.00024366,2]
[402024662,1768485041660,-564.0,0.00024509,2]
[402024663,1768485041669,-168.0,0.00024582,2]
[402024664,1768485041679,-168.0,0.00024651,2]
[402024665,1768485041688,-168.0,0.00024742,2]
[402024666,1768485041697,-168.0,0.00024827,2]
[402024667,1768485041707,-150.0,0.00024855,2]
[402024668,1768485041717,-958.7,0.00024861,2]
[402024669,1768485041726,-564.0,0.00024923,2]
[402024670,1768485041736,-1514.17823325,0.00024936,2]
[402024671,1768485041745,-1173.06817946,0.00024936,2]
[402024672,1768485041755,-564.0,0.00025013,2]
[402024673,1768485041764,-3075.56632083,0.00025046,2]
[402024674,1768485041773,-168.0,0.0002511,2]
[402024675,1768485041782,-564.0,0.00025223,2]
[402024676,1768485041792,-858.32000755,0.00025236,2]
[402024677,1768485041801,-573.7662582,0.00025236,2]
[402024678,1768485041810,-321.9876,0.00025236,2]
[402024679,1768485041820,-150.0,0.00025283,2]
[402024680,1768485041829,-150.0,0.00025297,2]
[402024681,1768485041838,-564.0,0.00025491,2]
[402024682,1768485041848,-150.0,0.00025527,2]
[402024683,1768485041859,-1550.15335,0.0002556,2]
[402024684,1768485041868,-1550.15336,0.0002556,2]
[402024685,1768485041877,-1550.15335,0.0002556,2]
[402024686,1768485041886,-1550.15335,0.0002557,2]
[402024687,1768485041896,-1550.15336,0.0002559,2]
[402024688,1768485041905,-150.0,0.00025591,2]
[402024689,1768485041914,-200.0,0.00025614,2]
[402024690,1768485041923,-150.0,0.00025632,2]
[402024691,1768485041933,-564.0,0.00025668,2]
[402024692,1768485041943,-1331.0,0.00025671,2]
[402024693,1768485041954,-6558.0,0.00025671,2]
[402024694,1768485041965,-1000.0,0.00025721,2]
[402024695,1768485041974,-150.0,0.00025724,2]
[402024696,1768485041985,-564.0,0.00025743,2]
[402024697,1768485041995,-168.0,0.00025744,2]
[402024698,1768485042005,-376.76,0.000258,30]
[402024699,1768485042014,-564.0,0.00025813,2]
[402024700,1768485042024,-151.0,0.00025821,2]
[402024701,1768485042034,-152.44708916,0.00025821,2]
[402024702,1768485042045,-1550.15336,0.00025821,2]
[402024703,1768485042054,-1550.15336,0.00025821,2]
[402024704,1768485042063,-1550.15336,0.00025821,2]
[402024705,1768485042073,-1550.15335,0.00025821,2]
[402024706,1768485042083,-1550.15336,0.00025821,2]
[402024707,1768485042095,-168.0,0.00025999,2]
[402024708,1768485042105,-1000.0,0.00026208,2]
[402024709,1768485042115,-150.0,0.00026361,2]
[402024710,1768485042124,-150.0,0.00026834,2]
[402024711,1768485042133,-958.7,0.00027109,2]
[402024712,1768485042142,-506.0,0.00027137,2]
[402024713,1768485042152,-194.30607324,0.00027214,2]
[402024714,1768485042161,-500.0,0.00027397,20]
[402024715,1768485042170,-300.0,0.00027397,2]
[402024716,1768485042179,-200.0,0.000274,2]
[402024717,1768485042188,-150.0,0.00027767,2]
[402024718,1768485042198,-156.14,0.00027917,2]
[402024719,1768485042207,-150.0,0.00028023,2]